[Event "Titled Tuesday Blitz July 20 2021"]
[White "Bugayev, Vladimir"]
[Black "Perez Rodriguez, Luis Manuel"]
[WhiteFideId "30901480"]
[BlackFideId "3503364"]
[WhiteElo "2255"]
[BlackElo "2429"]
[Result "0-1"]
[Round "02"]
[TimeControl "180+1"]
[Date "2021.07.21"]
[WhiteClock "0:00:01"]
[BlackClock "0:00:39"]

1. e4 {[%clk 0:03:00]}  e5 {[%clk 0:03:00]} 2. Nf3 {[%clk 0:03:01]}  Nc6 {[%clk 0:03:00]} 3. d4 {[%clk 0:03:01]}  exd4 {[%clk 0:03:00]} 4. Nxd4 {[%clk 0:03:02]}  Nf6 {[%clk 0:03:00]} 5. Nxc6 {[%clk 0:03:02]}  bxc6 {[%clk 0:03:01]} 6. e5 {[%clk 0:03:02]}  Qe7 {[%clk 0:03:01]} 7. Qe2 {[%clk 0:03:03]}  Nd5 {[%clk 0:03:01]} 8. h4 {[%clk 0:03:04]}  a5 {[%clk 0:02:59]} 9. c4 {[%clk 0:02:54]}  Nb6 {[%clk 0:02:59]} 10. b3 {[%clk 0:02:47]}  a4 {[%clk 0:02:52]} 11. Bb2 {[%clk 0:02:41]}  axb3 {[%clk 0:02:45]} 12. axb3 {[%clk 0:02:41]}  Qb4+ {[%clk 0:02:40]} 13. Nd2 {[%clk 0:02:30]}  Rxa1+ {[%clk 0:02:32]} 14. Bxa1 {[%clk 0:02:30]}  Qa3 {[%clk 0:02:33]} 15. Bd4 {[%clk 0:02:22]}  Bb4 {[%clk 0:02:21]} 16. Qd1 {[%clk 0:02:15]}  d5 {[%clk 0:02:09]} 17. exd6 {[%clk 0:01:55]}  O-O {[%clk 0:02:07]} 18. Be2 {[%clk 0:01:41]}  Qa2 {[%clk 0:02:06]} 19. Be3 {[%clk 0:01:27]}  Re8 {[%clk 0:01:43]} 20. O-O {[%clk 0:01:13]}  Rxe3 {[%clk 0:01:32]} 21. fxe3 {[%clk 0:01:14]}  Qxd2 {[%clk 0:01:31]} 22. Qxd2 {[%clk 0:01:09]}  Bxd2 {[%clk 0:01:32]} 23. dxc7 {[%clk 0:01:09]}  Bxe3+ {[%clk 0:01:32]} 24. Kh1 {[%clk 0:01:08]}  Kf8 {[%clk 0:01:33]} 25. Rd1 {[%clk 0:00:57]}  Bf4 {[%clk 0:01:22]} 26. c5 {[%clk 0:00:55]}  Nd5 {[%clk 0:01:20]} 27. Bf3 {[%clk 0:00:51]}  Bxc7 {[%clk 0:01:20]} 28. Bxd5 {[%clk 0:00:52]}  cxd5 {[%clk 0:01:21]} 29. Rxd5 {[%clk 0:00:52]}  Be6 {[%clk 0:01:21]} 30. Rd3 {[%clk 0:00:51]}  Ba5 {[%clk 0:01:21]} 31. c6 {[%clk 0:00:46]}  Ke7 {[%clk 0:01:21]} 32. Kg1 {[%clk 0:00:38]}  Bf5 {[%clk 0:01:20]} 33. Rd5 {[%clk 0:00:33]}  Bb6+ {[%clk 0:01:20]} 34. Kh1 {[%clk 0:00:32]}  Be6 {[%clk 0:01:18]} 35. Rb5 {[%clk 0:00:31]}  Bc7 {[%clk 0:01:18]} 36. b4 {[%clk 0:00:22]}  Kd6 {[%clk 0:01:12]} 37. Rg5 {[%clk 0:00:19]}  g6 {[%clk 0:01:11]} 38. b5 {[%clk 0:00:18]}  f5 {[%clk 0:01:10]} 39. Rg3 {[%clk 0:00:17]}  Kc5 {[%clk 0:01:08]} 40. Re3 {[%clk 0:00:17]}  Kd5 {[%clk 0:00:53]} 41. Rb3 {[%clk 0:00:15]}  Bb6 {[%clk 0:00:52]} 42. Rb1 {[%clk 0:00:10]}  Kc5 {[%clk 0:00:51]} 43. Re1 {[%clk 0:00:08]}  Kd6 {[%clk 0:00:49]} 44. Rd1+ {[%clk 0:00:08]}  Kc7 {[%clk 0:00:49]} 45. Re1 {[%clk 0:00:08]}  Kd6 {[%clk 0:00:46]} 46. Rd1+ {[%clk 0:00:08]}  Bd5 {[%clk 0:00:46]} 47. Kh2 {[%clk 0:00:07]}  Be3 {[%clk 0:00:46]} 48. Kg3 {[%clk 0:00:06]}  h5 {[%clk 0:00:46]} 49. Rb1 {[%clk 0:00:04]}  f4+ {[%clk 0:00:46]} 50. Kh2 {[%clk 0:00:03]}  Bb6 {[%clk 0:00:46]} 51. Rd1 {[%clk 0:00:03]}  Ke6 {[%clk 0:00:46]} 52. Re1+ {[%clk 0:00:01]}  Be3 {[%clk 0:00:44]} 53. Rb1 {[%clk 0:00:02]}  Kd6 {[%clk 0:00:42]} 54. b6 {[%clk 0:00:01]}  Bxc6 {[%clk 0:00:38]} 55. b7 {[%clk 0:00:01]}  Bxb7 {[%clk 0:00:39]} 0-1


[Site "https://www.chess.com"]

[Event "Titled Tuesday Blitz July 20 2021"]
[White "Chigaev, Maksim"]
[Black "FGHSMN"]
[WhiteFideId "4108116"]
[WhiteElo "2646"]
[BlackElo "2524"]
[Result "1/2-1/2"]
[Round "02"]
[TimeControl "180+1"]
[Date "2021.07.20"]
[WhiteClock "0:00:08"]
[BlackClock "0:00:12"]

1. d4 {[%clk 0:03:00]}  Nf6 {[%clk 0:02:59]} 2. c4 {[%clk 0:02:59]}  e6 {[%clk 0:02:58]} 3. Nf3 {[%clk 0:03:00]}  c5 {[%clk 0:02:58]} 4. g3 {[%clk 0:02:59]}  cxd4 {[%clk 0:02:56]} 5. Nxd4 {[%clk 0:03:00]}  a6 {[%clk 0:02:57]} 6. Bg2 {[%clk 0:03:00]}  Nc6 {[%clk 0:02:58]} 7. O-O {[%clk 0:02:59]}  Be7 {[%clk 0:02:57]} 8. b3 {[%clk 0:02:59]}  O-O {[%clk 0:02:57]} 9. Bb2 {[%clk 0:02:58]}  Qc7 {[%clk 0:02:57]} 10. Nc3 {[%clk 0:02:58]}  d6 {[%clk 0:02:56]} 11. Rc1 {[%clk 0:02:58]}  Nxd4 {[%clk 0:02:56]} 12. Qxd4 {[%clk 0:02:59]}  Bd7 {[%clk 0:02:56]} 13. Rfd1 {[%clk 0:02:59]}  Rfd8 {[%clk 0:02:55]} 14. h3 {[%clk 0:02:57]}  Rac8 {[%clk 0:02:54]} 15. g4 {[%clk 0:02:50]}  Qb8 {[%clk 0:02:49]} 16. g5 {[%clk 0:02:30]}  Ne8 {[%clk 0:02:45]} 17. h4 {[%clk 0:02:28]}  b6 {[%clk 0:02:44]} 18. Qe3 {[%clk 0:02:25]}  b5 {[%clk 0:02:39]} 19. cxb5 {[%clk 0:02:20]}  axb5 {[%clk 0:02:39]} 20. Nd5 {[%clk 0:02:18]}  Bf8 {[%clk 0:02:28]} 21. Nb6 {[%clk 0:02:11]}  Rxc1 {[%clk 0:02:27]} 22. Rxc1 {[%clk 0:02:12]}  d5 {[%clk 0:02:24]} 23. Be5 {[%clk 0:02:11]}  Bd6 {[%clk 0:02:14]} 24. Nxd7 {[%clk 0:02:10]}  Rxd7 {[%clk 0:02:14]} 25. Bxd6 {[%clk 0:02:05]}  Nxd6 {[%clk 0:02:10]} 26. Qe5 {[%clk 0:01:59]}  Rd8 {[%clk 0:01:53]} 27. h5 {[%clk 0:01:34]}  Ne4 {[%clk 0:01:41]} 28. Qxb8 {[%clk 0:01:33]}  Rxb8 {[%clk 0:01:41]} 29. Bxe4 {[%clk 0:01:32]}  dxe4 {[%clk 0:01:42]} 30. a4 {[%clk 0:01:28]}  bxa4 {[%clk 0:01:37]} 31. bxa4 {[%clk 0:01:29]}  h6 {[%clk 0:01:24]} 32. gxh6 {[%clk 0:01:25]}  gxh6 {[%clk 0:01:23]} 33. Kg2 {[%clk 0:01:15]}  Kg7 {[%clk 0:01:14]} 34. Ra1 {[%clk 0:01:03]}  Kf6 {[%clk 0:01:12]} 35. a5 {[%clk 0:01:02]}  Kg5 {[%clk 0:01:10]} 36. a6 {[%clk 0:01:00]}  Kxh5 {[%clk 0:01:10]} 37. Kg3 {[%clk 0:00:55]}  Kg5 {[%clk 0:01:08]} 38. a7 {[%clk 0:00:50]}  Ra8 {[%clk 0:01:07]} 39. Ra5+ {[%clk 0:00:51]}  f5 {[%clk 0:01:07]} 40. f4+ {[%clk 0:00:43]}  exf3 {[%clk 0:01:05]} 41. exf3 {[%clk 0:00:43]}  e5 {[%clk 0:00:57]} 42. Rxe5 {[%clk 0:00:40]}  Rxa7 {[%clk 0:00:54]} 43. f4+ {[%clk 0:00:38]}  Kg6 {[%clk 0:00:49]} 44. Kh4 {[%clk 0:00:34]}  Ra4 {[%clk 0:00:46]} 45. Re6+ {[%clk 0:00:32]}  Kg7 {[%clk 0:00:45]} 46. Kh5 {[%clk 0:00:23]}  Rxf4 {[%clk 0:00:38]} 47. Rxh6 {[%clk 0:00:14]}  Rg4 {[%clk 0:00:32]} 48. Rb6 {[%clk 0:00:14]}  Rg1 {[%clk 0:00:28]} 49. Kh4 {[%clk 0:00:12]}  Kf7 {[%clk 0:00:23]} 50. Kh3 {[%clk 0:00:12]}  Rg4 {[%clk 0:00:15]} 51. Ra6 {[%clk 0:00:10]}  Kg7 {[%clk 0:00:14]} 52. Rb6 {[%clk 0:00:10]}  Rg5 {[%clk 0:00:14]} 53. Ra6 {[%clk 0:00:08]}  Kf7 {[%clk 0:00:12]} 54. Rb6 {[%clk 0:00:08]}  Ke7 {[%clk 0:00:12]} 55. Ra6 {[%clk 0:00:08]}  Kd7 {[%clk 0:00:12]} 56. Rb6 {[%clk 0:00:08]}  Kc7 {[%clk 0:00:12]} 57. Rf6 {[%clk 0:00:08]}  Kd7 {[%clk 0:00:12]} 58. Kh4 {[%clk 0:00:08]}  Rg4+ {[%clk 0:00:12]} 59. Kh5 {[%clk 0:00:06]}  Rf4 {[%clk 0:00:11]} 60. Kg5 {[%clk 0:00:07]}  Rf1 {[%clk 0:00:11]} 61. Rxf5 {[%clk 0:00:07]}  Rxf5+ {[%clk 0:00:12]} 62. Kxf5 {[%clk 0:00:08]} 1/2-1/2


[Site "https://www.chess.com"]

[Event "Titled Tuesday Blitz July 20 2021"]
[White "Darini, Pouria"]
[Black "Orantes Taboada, Francisco"]
[WhiteFideId "12502200"]
[BlackFideId "22274758"]
[WhiteElo "2489"]
[BlackElo "2073"]
[Result "1-0"]
[Round "02"]
[TimeControl "180+1"]
[Date "2021.07.21"]
[WhiteClock "0:00:18"]
[BlackClock "0:00:09"]

1. e4 {[%clk 0:03:00]}  c5 {[%clk 0:02:59]} 2. Nf3 {[%clk 0:03:00]}  Nc6 {[%clk 0:02:59]} 3. Bb5 {[%clk 0:02:59]}  a6 {[%clk 0:02:59]} 4. Bxc6 {[%clk 0:02:59]}  dxc6 {[%clk 0:03:00]} 5. d3 {[%clk 0:02:55]}  Qc7 {[%clk 0:02:59]} 6. O-O {[%clk 0:02:49]}  e5 {[%clk 0:02:59]} 7. a4 {[%clk 0:02:42]}  a5 {[%clk 0:02:59]} 8. Na3 {[%clk 0:02:42]}  Bd6 {[%clk 0:02:57]} 9. Nc4 {[%clk 0:02:42]}  Ne7 {[%clk 0:02:58]} 10. b3 {[%clk 0:02:26]}  O-O {[%clk 0:02:56]} 11. Nfd2 {[%clk 0:02:07]}  Ng6 {[%clk 0:02:52]} 12. Nxd6 {[%clk 0:01:57]}  Qxd6 {[%clk 0:02:51]} 13. Nc4 {[%clk 0:01:58]}  Qc7 {[%clk 0:02:51]} 14. Qh5 {[%clk 0:01:51]}  Be6 {[%clk 0:02:45]} 15. g3 {[%clk 0:01:43]}  b5 {[%clk 0:02:30]} 16. Ne3 {[%clk 0:01:34]}  c4 {[%clk 0:02:29]} 17. dxc4 {[%clk 0:01:24]}  bxc4 {[%clk 0:02:30]} 18. bxc4 {[%clk 0:01:24]}  Rfd8 {[%clk 0:02:28]} 19. Bb2 {[%clk 0:01:02]}  f6 {[%clk 0:02:14]} 20. Bc3 {[%clk 0:01:02]}  Qf7 {[%clk 0:01:44]} 21. c5 {[%clk 0:00:55]}  Qe7 {[%clk 0:01:18]} 22. Rfd1 {[%clk 0:00:40]}  Qxc5 {[%clk 0:01:16]} 23. Rxd8+ {[%clk 0:00:39]}  Rxd8 {[%clk 0:01:17]} 24. Be1 {[%clk 0:00:39]}  Rd4 {[%clk 0:01:09]} 25. Qf3 {[%clk 0:00:27]}  Ne7 {[%clk 0:00:54]} 26. h4 {[%clk 0:00:27]}  Nc8 {[%clk 0:00:54]} 27. h5 {[%clk 0:00:28]}  Nb6 {[%clk 0:00:49]} 28. h6 {[%clk 0:00:27]}  Rxa4 {[%clk 0:00:48]} 29. Rb1 {[%clk 0:00:21]}  Rd4 {[%clk 0:00:26]} 30. hxg7 {[%clk 0:00:21]}  Kxg7 {[%clk 0:00:27]} 31. Nf5+ {[%clk 0:00:21]}  Bxf5 {[%clk 0:00:27]} 32. Qxf5 {[%clk 0:00:22]}  Rd6 {[%clk 0:00:14]} 33. Qg4+ {[%clk 0:00:22]}  Kf7 {[%clk 0:00:13]} 34. Qh5+ {[%clk 0:00:20]}  Kg7 {[%clk 0:00:14]} 35. Kg2 {[%clk 0:00:16]}  Qxc2 {[%clk 0:00:11]} 36. Qg4+ {[%clk 0:00:16]}  Kf7 {[%clk 0:00:10]} 37. Rxb6 {[%clk 0:00:17]}  Re6 {[%clk 0:00:08]} 38. Rb7+ {[%clk 0:00:17]}  Re7 {[%clk 0:00:09]} 39. Qh5+ {[%clk 0:00:17]}  Ke6 {[%clk 0:00:09]} 40. Qh3+ {[%clk 0:00:18]}  Kf7 {[%clk 0:00:09]} 41. Qxh7+ {[%clk 0:00:18]}  Ke6 {[%clk 0:00:09]} 42. Qxe7# {[%clk 0:00:18]} 1-0


[Site "https://www.chess.com"]

[Event "Titled Tuesday Blitz July 20 2021"]
[White "Dong, Bao Nghia"]
[Black "Tarasova, Viktoriya"]
[WhiteFideId "12400343"]
[BlackFideId "4175840"]
[WhiteElo "2409"]
[BlackElo "2182"]
[Result "0-1"]
[Round "02"]
[TimeControl "180+1"]
[Date "2021.07.21"]
[WhiteClock "0:01:57"]
[BlackClock "0:02:02"]

1. d4 {[%clk 0:03:00]}  Nf6 {[%clk 0:02:59]} 2. c4 {[%clk 0:02:59]}  e6 {[%clk 0:02:59]} 3. Nc3 {[%clk 0:02:55]}  Bb4 {[%clk 0:02:58]} 4. Qb3 {[%clk 0:02:47]}  Bxc3+ {[%clk 0:02:54]} 5. Qxc3 {[%clk 0:02:31]}  b6 {[%clk 0:02:54]} 6. f3 {[%clk 0:02:30]}  d5 {[%clk 0:02:51]} 7. e3 {[%clk 0:02:28]}  O-O {[%clk 0:02:50]} 8. Bd3 {[%clk 0:02:27]}  Ba6 {[%clk 0:02:48]} 9. Ne2 {[%clk 0:02:27]}  dxc4 {[%clk 0:02:41]} 10. O-O {[%clk 0:02:28]}  cxd3 {[%clk 0:02:40]} 11. Nf4 {[%clk 0:02:27]}  Nbd7 {[%clk 0:02:37]} 12. Nxd3 {[%clk 0:02:26]}  Bxd3 {[%clk 0:02:36]} 13. Qxd3 {[%clk 0:02:23]}  c5 {[%clk 0:02:36]} 14. Rd1 {[%clk 0:02:20]}  cxd4 {[%clk 0:02:35]} 15. exd4 {[%clk 0:02:20]}  Nd5 {[%clk 0:02:33]} 16. Bd2 {[%clk 0:02:18]}  Rc8 {[%clk 0:02:32]} 17. a3 {[%clk 0:02:17]}  Qe7 {[%clk 0:02:31]} 18. Re1 {[%clk 0:02:14]}  Qd6 {[%clk 0:02:28]} 19. Re4 {[%clk 0:02:12]}  N7f6 {[%clk 0:02:28]} 20. Rh4 {[%clk 0:02:12]}  Rfd8 {[%clk 0:02:09]} 21. Re1 {[%clk 0:02:11]}  Ne7 {[%clk 0:02:03]} 22. Bc3 {[%clk 0:01:57]}  Ng6 {[%clk 0:02:02]} 0-1


[Site "https://www.chess.com"]

[Event "Titled Tuesday Blitz July 20 2021"]
[White "Wagner, Dinara"]
[Black "Melikhov, Evgeny V."]
[WhiteFideId "24157570"]
[BlackFideId "4122046"]
[WhiteElo "2260"]
[BlackElo "1965"]
[Result "0-1"]
[Round "02"]
[TimeControl "180+1"]
[Date "2021.07.21"]
[WhiteClock "0:00:39"]
[BlackClock "0:00:55"]

1. d4 {[%clk 0:02:54]}  Nf6 {[%clk 0:02:59]} 2. c4 {[%clk 0:02:52]}  e6 {[%clk 0:02:59]} 3. Nf3 {[%clk 0:02:50]}  d5 {[%clk 0:02:58]} 4. g3 {[%clk 0:02:50]}  dxc4 {[%clk 0:02:58]} 5. Bg2 {[%clk 0:02:48]}  Nc6 {[%clk 0:02:58]} 6. Qa4 {[%clk 0:02:47]}  Bb4+ {[%clk 0:02:57]} 7. Bd2 {[%clk 0:02:47]}  Bd6 {[%clk 0:02:57]} 8. Qxc4 {[%clk 0:02:45]}  O-O {[%clk 0:02:56]} 9. O-O {[%clk 0:02:38]}  e5 {[%clk 0:02:56]} 10. d5 {[%clk 0:02:36]}  Ne7 {[%clk 0:02:56]} 11. e4 {[%clk 0:02:35]}  Ng6 {[%clk 0:02:55]} 12. Nc3 {[%clk 0:02:34]}  a6 {[%clk 0:02:55]} 13. Qe2 {[%clk 0:02:32]}  h6 {[%clk 0:02:54]} 14. Rfd1 {[%clk 0:02:31]}  Nh7 {[%clk 0:02:54]} 15. Rac1 {[%clk 0:02:30]}  f5 {[%clk 0:02:53]} 16. exf5 {[%clk 0:02:29]}  Bxf5 {[%clk 0:02:53]} 17. Ne4 {[%clk 0:02:19]}  Nf6 {[%clk 0:02:44]} 18. Nc5 {[%clk 0:02:10]}  Rb8 {[%clk 0:02:34]} 19. Be3 {[%clk 0:01:40]}  Qe7 {[%clk 0:02:24]} 20. Qc4 {[%clk 0:01:33]}  Ng4 {[%clk 0:02:12]} 21. Ne6 {[%clk 0:01:10]}  Nxe3 {[%clk 0:02:11]} 22. fxe3 {[%clk 0:01:11]}  Rf7 {[%clk 0:01:53]} 23. Nd2 {[%clk 0:00:56]}  Re8 {[%clk 0:01:48]} 24. Ne4 {[%clk 0:00:45]}  Kh7 {[%clk 0:01:18]} 25. h3 {[%clk 0:00:43]}  Bxe6 {[%clk 0:01:10]} 26. dxe6 {[%clk 0:00:43]}  Qxe6 {[%clk 0:01:10]} 27. Nxd6 {[%clk 0:00:36]}  cxd6 {[%clk 0:01:10]} 28. Qxe6 {[%clk 0:00:36]}  Rxe6 {[%clk 0:01:10]} 29. Bd5 {[%clk 0:00:37]}  Rff6 {[%clk 0:01:08]} 30. Bxe6 {[%clk 0:00:37]}  Rxe6 {[%clk 0:01:08]} 31. Rc7 {[%clk 0:00:37]}  b5 {[%clk 0:01:08]} 32. Rf1 {[%clk 0:00:37]}  Re7 {[%clk 0:01:03]} 33. Rf7 {[%clk 0:00:34]}  Rxf7 {[%clk 0:00:57]} 34. Rxf7 {[%clk 0:00:35]}  d5 {[%clk 0:00:57]} 35. Rd7 {[%clk 0:00:35]}  d4 {[%clk 0:00:57]} 36. exd4 {[%clk 0:00:35]}  exd4 {[%clk 0:00:57]} 37. Rxd4 {[%clk 0:00:36]}  Ne5 {[%clk 0:00:57]} 38. b3 {[%clk 0:00:34]}  Nf3+ {[%clk 0:00:57]} 39. Kf2 {[%clk 0:00:33]}  Nxd4 {[%clk 0:00:58]} 40. Ke3 {[%clk 0:00:33]}  Nc6 {[%clk 0:00:56]} 41. Ke4 {[%clk 0:00:33]}  Kg6 {[%clk 0:00:56]} 42. Kd5 {[%clk 0:00:33]}  Nb4+ {[%clk 0:00:56]} 43. Kc5 {[%clk 0:00:33]}  Nxa2 {[%clk 0:00:56]} 44. Kb6 {[%clk 0:00:34]}  Nc1 {[%clk 0:00:56]} 45. Kxa6 {[%clk 0:00:34]}  Nd3 {[%clk 0:00:56]} 46. Kxb5 {[%clk 0:00:34]}  Kf5 {[%clk 0:00:55]} 47. Kc4 {[%clk 0:00:34]}  Ke4 {[%clk 0:00:55]} 48. b4 {[%clk 0:00:34]}  Nxb4 {[%clk 0:00:55]} 49. Kxb4 {[%clk 0:00:34]}  Kf3 {[%clk 0:00:55]} 50. Kc4 {[%clk 0:00:35]}  Kxg3 {[%clk 0:00:55]} 51. Kd4 {[%clk 0:00:36]}  Kxh3 {[%clk 0:00:55]} 52. Ke3 {[%clk 0:00:36]}  g5 {[%clk 0:00:55]} 53. Kf2 {[%clk 0:00:36]}  g4 {[%clk 0:00:55]} 54. Kg1 {[%clk 0:00:36]}  g3 {[%clk 0:00:56]} 55. Kh1 {[%clk 0:00:37]}  g2+ {[%clk 0:00:55]} 56. Kg1 {[%clk 0:00:37]}  h5 {[%clk 0:00:55]} 57. Kf2 {[%clk 0:00:38]}  Kh2 {[%clk 0:00:55]} 58. Kf3 {[%clk 0:00:38]}  g1=Q {[%clk 0:00:55]} 59. Kf4 {[%clk 0:00:39]}  Qg4+ {[%clk 0:00:55]} 60. Ke5 {[%clk 0:00:39]}  Kg3 {[%clk 0:00:55]} 0-1


[Site "https://www.chess.com"]

[Event "Titled Tuesday Blitz July 20 2021"]
[White "Garcia, Gabriel Gonzaga"]
[Black "Pulpan, Jakub"]
[WhiteFideId "2138956"]
[BlackFideId "302759"]
[WhiteElo "2455"]
[BlackElo "2708"]
[Result "1-0"]
[Round "02"]
[TimeControl "180+1"]
[Date "2021.07.21"]
[WhiteClock "0:02:44"]
[BlackClock "0:02:21"]

1. e4 {[%clk 0:02:58]}  e5 {[%clk 0:02:40]} 2. Nf3 {[%clk 0:02:59]}  Nc6 {[%clk 0:02:40]} 3. Bc4 {[%clk 0:02:59]}  Bc5 {[%clk 0:02:39]} 4. c3 {[%clk 0:02:59]}  Nf6 {[%clk 0:02:39]} 5. d4 {[%clk 0:02:59]}  exd4 {[%clk 0:02:40]} 6. cxd4 {[%clk 0:03:00]}  Bb4+ {[%clk 0:02:40]} 7. Bd2 {[%clk 0:03:01]}  Bxd2+ {[%clk 0:02:40]} 8. Nbxd2 {[%clk 0:03:02]}  d5 {[%clk 0:02:41]} 9. exd5 {[%clk 0:03:03]}  Nxd5 {[%clk 0:02:42]} 10. Qb3 {[%clk 0:03:03]}  Na5 {[%clk 0:02:42]} 11. Qa4+ {[%clk 0:03:04]}  Nc6 {[%clk 0:02:43]} 12. Qb3 {[%clk 0:03:04]}  Nce7 {[%clk 0:02:43]} 13. O-O {[%clk 0:03:05]}  O-O {[%clk 0:02:43]} 14. Rfe1 {[%clk 0:03:05]}  c6 {[%clk 0:02:43]} 15. Re2 {[%clk 0:03:06]}  Nb6 {[%clk 0:02:38]} 16. Bxf7+ {[%clk 0:03:05]}  Rxf7 {[%clk 0:02:38]} 17. Rae1 {[%clk 0:03:06]}  Nbd5 {[%clk 0:02:36]} 18. Ng5 {[%clk 0:03:06]}  Qb6 {[%clk 0:02:28]} 19. Rxe7 {[%clk 0:02:56]}  Qxb3 {[%clk 0:02:24]} 20. Rxf7 {[%clk 0:02:50]}  Be6 {[%clk 0:02:19]} 21. Rxg7+ {[%clk 0:02:42]}  Kxg7 {[%clk 0:02:19]} 22. Nxe6+ {[%clk 0:02:43]}  Kf6 {[%clk 0:02:20]} 23. Nxb3 {[%clk 0:02:44]}  Rf8 {[%clk 0:02:21]} 1-0


[Site "https://www.chess.com"]

[Event "Titled Tuesday Blitz July 20 2021"]
[White "Garcia Ramos, Daniel"]
[Black "Lauridsen, Jesper Morch"]
[WhiteFideId "32010311"]
[BlackFideId "1401890"]
[WhiteElo "2321"]
[BlackElo "2280"]
[Result "1-0"]
[Round "02"]
[TimeControl "180+1"]
[Date "2021.07.21"]
[WhiteClock "0:00:05"]
[BlackClock "0:00:02"]

1. c4 {[%clk 0:03:00]}  Nf6 {[%clk 0:02:59]} 2. Nf3 {[%clk 0:03:00]}  g6 {[%clk 0:02:58]} 3. g3 {[%clk 0:03:01]}  c5 {[%clk 0:02:58]} 4. Bg2 {[%clk 0:03:01]}  Nc6 {[%clk 0:02:58]} 5. O-O {[%clk 0:03:02]}  d6 {[%clk 0:02:52]} 6. d4 {[%clk 0:03:00]}  cxd4 {[%clk 0:02:52]} 7. Nxd4 {[%clk 0:03:00]}  Bd7 {[%clk 0:02:53]} 8. Nc3 {[%clk 0:03:00]}  Bg7 {[%clk 0:02:52]} 9. Nc2 {[%clk 0:02:59]}  O-O {[%clk 0:02:50]} 10. Bf4 {[%clk 0:02:52]}  Qc8 {[%clk 0:02:45]} 11. Qd2 {[%clk 0:02:44]}  Bh3 {[%clk 0:02:42]} 12. Rac1 {[%clk 0:02:40]}  Bxg2 {[%clk 0:02:41]} 13. Kxg2 {[%clk 0:02:41]}  Qe6 {[%clk 0:02:33]} 14. b3 {[%clk 0:02:33]}  Ne4 {[%clk 0:02:27]} 15. Nxe4 {[%clk 0:02:29]}  Qxe4+ {[%clk 0:02:27]} 16. f3 {[%clk 0:02:30]}  Qe6 {[%clk 0:02:23]} 17. e4 {[%clk 0:02:29]}  f5 {[%clk 0:02:17]} 18. Qd5 {[%clk 0:02:27]}  Qxd5 {[%clk 0:02:06]} 19. exd5 {[%clk 0:02:02]}  Ne5 {[%clk 0:02:02]} 20. Bxe5 {[%clk 0:01:48]}  Bxe5 {[%clk 0:02:00]} 21. f4 {[%clk 0:01:44]}  Bf6 {[%clk 0:01:53]} 22. Rfe1 {[%clk 0:01:43]}  g5 {[%clk 0:01:47]} 23. Ne3 {[%clk 0:01:31]}  gxf4 {[%clk 0:01:46]} 24. gxf4 {[%clk 0:01:31]}  Bh4 {[%clk 0:01:33]} 25. Re2 {[%clk 0:01:31]}  Kh8 {[%clk 0:01:28]} 26. Kf3 {[%clk 0:01:31]}  Rf7 {[%clk 0:01:23]} 27. c5 {[%clk 0:01:25]}  dxc5 {[%clk 0:01:12]} 28. Rxc5 {[%clk 0:01:25]}  Raf8 {[%clk 0:00:36]} 29. Rc7 {[%clk 0:01:22]}  e5 {[%clk 0:00:34]} 30. Rxf7 {[%clk 0:00:56]}  e4+ {[%clk 0:00:34]} 31. Kg2 {[%clk 0:00:56]}  Rxf7 {[%clk 0:00:34]} 32. Rd2 {[%clk 0:00:43]}  Bd8 {[%clk 0:00:20]} 33. d6 {[%clk 0:00:39]}  Kg7 {[%clk 0:00:19]} 34. Rd5 {[%clk 0:00:33]}  Kg6 {[%clk 0:00:17]} 35. a4 {[%clk 0:00:18]}  Rd7 {[%clk 0:00:14]} 36. Nxf5 {[%clk 0:00:17]}  Bb6 {[%clk 0:00:12]} 37. Ng3 {[%clk 0:00:12]}  e3 {[%clk 0:00:11]} 38. Kf3 {[%clk 0:00:13]}  Kf7 {[%clk 0:00:09]} 39. f5 {[%clk 0:00:10]}  Bd8 {[%clk 0:00:07]} 40. Ne4 {[%clk 0:00:10]}  Bf6 {[%clk 0:00:06]} 41. Kxe3 {[%clk 0:00:09]}  Bb2 {[%clk 0:00:05]} 42. Kf4 {[%clk 0:00:08]}  h6 {[%clk 0:00:05]} 43. b4 {[%clk 0:00:08]}  b6 {[%clk 0:00:05]} 44. a5 {[%clk 0:00:08]}  Ba3 {[%clk 0:00:05]} 45. axb6 {[%clk 0:00:07]}  axb6 {[%clk 0:00:06]} 46. Rd4 {[%clk 0:00:07]}  b5 {[%clk 0:00:05]} 47. Rd5 {[%clk 0:00:07]}  Bc1+ {[%clk 0:00:05]} 48. Kg4 {[%clk 0:00:06]}  Bb2 {[%clk 0:00:04]} 49. Rxb5 {[%clk 0:00:06]}  Rd8 {[%clk 0:00:04]} 50. Rb7+ {[%clk 0:00:06]}  Kf8 {[%clk 0:00:03]} 51. Kh5 {[%clk 0:00:06]}  Bd4 {[%clk 0:00:03]} 52. Kxh6 {[%clk 0:00:06]}  Be5 {[%clk 0:00:03]} 53. Kg6 {[%clk 0:00:06]}  Bxh2 {[%clk 0:00:03]} 54. d7 {[%clk 0:00:03]}  Be5 {[%clk 0:00:02]} 55. Ng5 {[%clk 0:00:03]}  Bd4 {[%clk 0:00:02]} 56. Ne6+ {[%clk 0:00:04]}  Kg8 {[%clk 0:00:02]} 57. Nxd8 {[%clk 0:00:05]} 1-0


[Site "https://www.chess.com"]

[Event "Titled Tuesday Blitz July 20 2021"]
[White "Golubev, Mikhail"]
[Black "Sailer, Mike"]
[WhiteFideId "14100983"]
[BlackFideId "2012901"]
[WhiteElo "2374"]
[BlackElo "2109"]
[Result "1/2-1/2"]
[Round "02"]
[TimeControl "180+1"]
[Date "2021.07.21"]
[WhiteClock "0:00:35"]
[BlackClock "0:00:36"]

1. e4 {[%clk 0:03:00]}  d5 {[%clk 0:02:59]} 2. exd5 {[%clk 0:02:59]}  Qxd5 {[%clk 0:02:59]} 3. Nf3 {[%clk 0:02:59]}  Bg4 {[%clk 0:02:58]} 4. Be2 {[%clk 0:02:59]}  Nc6 {[%clk 0:02:59]} 5. d4 {[%clk 0:02:59]}  O-O-O {[%clk 0:02:59]} 6. c4 {[%clk 0:02:59]}  Qa5+ {[%clk 0:02:54]} 7. Bd2 {[%clk 0:02:55]}  Qf5 {[%clk 0:02:53]} 8. d5 {[%clk 0:02:43]}  Bxf3 {[%clk 0:02:39]} 9. Bxf3 {[%clk 0:02:43]}  Ne5 {[%clk 0:02:38]} 10. Be2 {[%clk 0:02:40]}  Nd3+ {[%clk 0:02:23]} 11. Bxd3 {[%clk 0:02:37]}  Qxd3 {[%clk 0:02:23]} 12. Qe2 {[%clk 0:02:18]}  Qxe2+ {[%clk 0:02:20]} 13. Kxe2 {[%clk 0:02:19]}  e6 {[%clk 0:02:14]} 14. dxe6 {[%clk 0:02:17]}  Re8 {[%clk 0:02:15]} 15. Rd1 {[%clk 0:02:09]}  Rxe6+ {[%clk 0:02:15]} 16. Kf1 {[%clk 0:02:09]}  Nf6 {[%clk 0:02:12]} 17. Nc3 {[%clk 0:02:08]}  Bc5 {[%clk 0:02:06]} 18. Na4 {[%clk 0:01:41]}  Bd4 {[%clk 0:01:52]} 19. Bc3 {[%clk 0:01:36]}  Bxc3 {[%clk 0:01:50]} 20. Nxc3 {[%clk 0:01:37]}  Rhe8 {[%clk 0:01:45]} 21. Rd2 {[%clk 0:01:32]}  Ne4 {[%clk 0:01:34]} 22. Nxe4 {[%clk 0:01:31]}  Rxe4 {[%clk 0:01:35]} 23. b3 {[%clk 0:01:31]}  Rd8 {[%clk 0:01:16]} 24. Rad1 {[%clk 0:01:31]}  Rxd2 {[%clk 0:01:15]} 25. Rxd2 {[%clk 0:01:32]}  c6 {[%clk 0:01:13]} 26. g3 {[%clk 0:01:31]}  Kc7 {[%clk 0:01:13]} 27. Kg2 {[%clk 0:01:31]}  Re1 {[%clk 0:01:08]} 28. Kf3 {[%clk 0:01:30]}  Re6 {[%clk 0:01:06]} 29. h4 {[%clk 0:01:30]}  Rf6+ {[%clk 0:01:06]} 30. Kg2 {[%clk 0:01:25]}  h5 {[%clk 0:01:06]} 31. f4 {[%clk 0:01:20]}  g6 {[%clk 0:01:02]} 32. Re2 {[%clk 0:01:18]}  Kd7 {[%clk 0:01:01]} 33. Kf3 {[%clk 0:01:17]}  Re6 {[%clk 0:01:00]} 34. Rd2+ {[%clk 0:01:14]}  Rd6 {[%clk 0:01:00]} 35. Re2 {[%clk 0:00:56]}  f5 {[%clk 0:00:58]} 36. Re3 {[%clk 0:00:46]}  Rd2 {[%clk 0:00:57]} 37. a4 {[%clk 0:00:45]}  b6 {[%clk 0:00:49]} 38. Rc3 {[%clk 0:00:41]}  c5 {[%clk 0:00:45]} 39. Ke3 {[%clk 0:00:39]}  Rg2 {[%clk 0:00:41]} 40. Rd3+ {[%clk 0:00:37]}  Ke7 {[%clk 0:00:40]} 41. Kf3 {[%clk 0:00:38]}  Rg1 {[%clk 0:00:36]} 42. Ke2 {[%clk 0:00:34]}  Rg2+ {[%clk 0:00:36]} 43. Kf3 {[%clk 0:00:34]}  Rg1 {[%clk 0:00:36]} 44. Ke2 {[%clk 0:00:34]}  Rg2+ {[%clk 0:00:36]} 45. Kf3 {[%clk 0:00:35]} 1/2-1/2


[Site "https://www.chess.com"]